fUST/lending_fUST_20250427
["ID","MTS","AMOUNT","RATE_DAILY","PERIOD"]
[359166431,1745761832308,-500.0,0.00016043,2]
[359166433,1745761832317,-500.0,0.00016043,2]
[359166435,1745761832328,-500.0,0.00016043,2]
[359166437,1745761832338,-500.0,0.00016043,2]
[359166439,1745761832348,-500.0,0.00016043,2]
[359166441,1745761832358,-500.0,0.00016043,2]
[359166442,1745761832369,-500.0,0.00016043,2]
[359166443,1745761832379,-500.0,0.00016043,2]
[359166444,1745761832390,-500.0,0.00016043,2]
[359166445,1745761832400,-500.0,0.00016043,2]
[359166446,1745761832410,-500.0,0.00016043,2]
[359166447,1745761832420,-500.0,0.00016043,2]
[359166448,1745761832431,-500.0,0.00016043,2]
[359166449,1745761832441,-500.0,0.00016043,2]
[359166450,1745761832451,-500.0,0.00016043,2]
[359166451,1745761832461,-500.0,0.00016043,2]
[359166452,1745761832472,-190.2200267,0.00016043,2]
[359166453,1745761832482,-500.0,0.00016043,2]
[359166454,1745761832493,-500.0,0.00016043,2]
[359166455,1745761832503,-500.0,0.00016043,2]
[359166456,1745761832514,-500.0,0.00016043,2]
[359166457,1745761832524,-464.08967961,0.00016043,2]
[359166461,1745761837982,-35.91032039,0.00016043,2]
[359166462,1745761837994,-500.0,0.00016043,2]
[359166463,1745761838004,-500.0,0.00016043,2]
[359166464,1745761838014,-500.0,0.00016043,2]
[359166465,1745761838024,-500.0,0.00016043,2]
[359166466,1745761838036,-500.0,0.00016043,2]
[359166467,1745761838045,-500.0,0.00016043,2]
[359166468,1745761838055,-579.87746804,0.00016043,2]
[359166469,1745761838064,-500.0,0.00016043,2]
[359166470,1745761838074,-500.0,0.00016043,2]
[359166471,1745761838084,-500.0,0.00016043,2]
[359166472,1745761838094,-259.17979412,0.00016043,2]
[359166494,1745761844926,-240.82020588,0.00016043,2]
[359166495,1745761844937,-250.0,0.00016043,2]
[359166496,1745761844947,-500.0,0.00016045,2]
[359166497,1745761844956,-168.23512206,0.00016173,2]
[359166498,1745761844966,-151.0,0.00016228,2]
[359166499,1745761844975,-11576.08064942,0.00016238,2]
[359166500,1745761845038,-186884.83517439,0.00016238,2]
[359166501,1745761845048,-500.0,0.00016273,2]
[359166502,1745761845058,-515.43856953,0.00016273,2]
[359166503,1745761845068,-500.28340555,0.00016273,2]
[359166504,1745761845078,-500.0,0.00016273,2]
[359166505,1745761845088,-500.0,0.00016273,2]
[359166506,1745761845098,-378.63524468,0.00016273,2]
[359166507,1745761845108,-500.0,0.00016273,2]
[359166508,1745761845117,-500.75199974,0.00016273,2]
[359166509,1745761845127,-400.08867886,0.00016273,2]
[359166510,1745761845136,-500.0,0.00016273,2]
[359166511,1745761845146,-526.19308115,0.00016273,2]
[359166512,1745761845155,-500.0,0.00016273,2]
[359166514,1745761845164,-500.0,0.00016273,2]
[359166515,1745761845174,-500.0,0.00016273,2]
[359166516,1745761845183,-500.0,0.00016273,2]
[359166517,1745761845192,-311.48291134,0.00016273,2]
[359166518,1745761845201,-500.0,0.00016273,2]
[359166519,1745761845210,-500.0,0.00016273,2]
[359166521,1745761845220,-500.0,0.00016273,2]
[359166522,1745761845229,-500.0,0.00016273,2]
[359166523,1745761845238,-500.0,0.00016273,2]
[359166524,1745761845250,-500.0,0.00016273,2]
[359166525,1745761845259,-500.0,0.00016273,2]
[359166526,1745761845268,-500.0,0.00016273,2]
[359166527,1745761845278,-500.0,0.00016273,2]
[359166528,1745761845287,-500.0,0.00016273,2]
[359166529,1745761845297,-519.84861205,0.00016337,2]
[359166530,1745761845306,-400.0,0.00016438,2]
[359166531,1745761845316,-500.0,0.00016438,2]
[359166532,1745761845325,-500.0,0.00016438,2]
[359166533,1745761845335,-500.0,0.00016438,2]
[359166534,1745761845344,-500.0,0.00016438,2]
[359166535,1745761845354,-500.0,0.00016438,2]
[359166536,1745761845363,-500.0,0.00016438,2]
[359166537,1745761845373,-500.0,0.00016438,2]
[359166538,1745761845382,-500.0,0.00016438,2]
[359166539,1745761845391,-500.0,0.00016438,2]
[359166540,1745761845401,-500.0,0.00016438,2]
[359166541,1745761845410,-500.0,0.00016438,2]
[359166542,1745761845419,-500.0,0.00016438,2]
[359166543,1745761845429,-500.0,0.00016438,2]
[359166544,1745761845438,-500.0,0.00016438,2]
[359166545,1745761845448,-500.0,0.00016438,2]
[359166546,1745761845457,-326.87,0.00016438,2]
[359166548,1745761845466,-500.0,0.00016438,2]
[359166549,1745761845476,-400.0,0.00016438,2]
[359166550,1745761845485,-400.0,0.00016438,2]
[359166551,1745761845495,-400.0,0.00016438,2]
[359166552,1745761845504,-400.0,0.00016438,2]
[359166554,1745761845513,-400.0,0.00016438,2]
[359166556,1745761845524,-400.0,0.00016438,2]
[359166558,1745761845533,-6523.9997029,0.0001644,2]
[359166559,1745761845542,-400.0,0.00016712,2]
[359166560,1745761845552,-400.0,0.00016712,2]
[359166561,1745761845561,-400.0,0.00016712,2]
[359166562,1745761845571,-400.0,0.00016712,2]
[359166563,1745761845581,-444.62,0.00016712,2]
[359166564,1745761845592,-400.0,0.00016712,2]
[359166565,1745761845601,-400.0,0.00016712,2]
[359166566,1745761845611,-400.0,0.00016986,2]
[359166567,1745761845620,-400.0,0.00016986,2]
[359166568,1745761845630,-400.0,0.00016986,2]
[359166569,1745761845640,-400.0,0.00016986,2]
[359166570,1745761845649,-400.0,0.00016986,2]
[359166573,1745761845668,-336.6,0.00016986,2]
[359166575,1745761845678,-700.0,0.00017,2]
[359166576,1745761845689,-168.23512202,0.00017105,2]
[359166577,1745761845699,-400.0,0.0001726,2]
[359166578,1745761845709,-2951.5,0.0001726,2]
[359166580,1745761845719,-2951.5,0.0001726,2]
[359166581,1745761845729,-151.0,0.0001726,2]
[359166582,1745761845739,-400.0,0.0001726,2]
[359166583,1745761845749,-400.0,0.0001726,2]
[359166584,1745761845759,-400.0,0.0001726,2]
[359166585,1745761845769,-243.8117639,0.00017403,2]
[359166586,1745761845778,-160.0,0.00017514,2]
[359166587,1745761845788,-160.0,0.00017514,2]
[359166588,1745761845797,-840.47993636,0.00017514,2]
[359166589,1745761845807,-160.0,0.00017514,2]
[359166590,1745761845818,-421.1409203,0.00017514,2]
[359166591,1745761845828,-12584.55399671,0.00017514,2]
[359166592,1745761845838,-160.0,0.00017514,2]
[359166593,1745761845848,-160.0,0.00017514,2]
[359166594,1745761845858,-160.0,0.00017514,2]
[359166595,1745761845869,-160.0,0.00017514,2]
[359166596,1745761845881,-400.0,0.00017534,2]
[359166597,1745761845891,-400.0,0.00017534,2]
[359166598,1745761845901,-400.0,0.00017534,2]
[359166599,1745761845911,-400.0,0.00017534,2]
[359166600,1745761845921,-1802.66102286,0.000177,2]
[359166601,1745761845931,-316.43764261,0.00017728,2]
[359166602,1745761845942,-400.0,0.00017808,2]
[359166603,1745761845952,-400.0,0.00017808,2]
[359166604,1745761845962,-359.94,0.00017808,2]
[359166605,1745761845971,-377.0,0.00017808,2]
[359166606,1745761845981,-423.52088099,0.000179,2]
[359166607,1745761845991,-5814.3657409,0.00018,2]
[359166608,1745761846056,-53304.49455635,0.00018,2]
[359166609,1745761846068,-31134.32554755,0.00018,2]
[359166610,1745761846115,-9746.8141552,0.00018,2]
[359166611,1745761846125,-250.0,0.00018,2]
[359166612,1745761846134,-155.0,0.00018,2]
[359166613,1745761846144,-700.0,0.00018,3]
[359166614,1745761846153,-168.23512202,0.00018037,2]
[359166615,1745761846163,-400.0,0.00018082,2]
[359166617,1745761846173,-400.0,0.00018082,2]
[359166618,1745761846182,-400.0,0.00018356,2]
[359166620,1745761846192,-400.0,0.00018356,2]
[359166622,1745761846202,-400.0,0.0001863,2]
[359166623,1745761846211,-400.0,0.0001863,2]
[359166624,1745761846220,-423.52088084,0.00018659,2]
[359166625,1745761846230,-400.0,0.00018904,2]
[359166626,1745761846239,-400.0,0.00018904,2]
[359166627,1745761846248,-168.23512202,0.00018968,2]
[359166628,1745761846258,-820.0,0.00019,4]
[359166629,1745761846269,-151.0,0.00019158,2]
[359166630,1745761846279,-207.4,0.00019158,2]
[359166632,1745761846288,-400.0,0.00019178,2]
[359166633,1745761846297,-379.23,0.00019178,2]
[359166634,1745761846307,-300.0,0.00019178,2]
[359166635,1745761846316,-1341.9713381,0.00019304,2]
[359166636,1745761846325,-423.52088084,0.00019417,2]
[359166637,1745761846334,-400.0,0.00019452,2]
[359166638,1745761846343,-190.15805899,0.00019689,2]
[359166639,1745761846354,-200.0,0.00019726,2]
[359166640,1745761846363,-168.23512202,0.000199,2]
[359166641,1745761846372,-500.0,0.00019973,2]
[359166642,1745761846380,-261.57715695,0.00019973,2]
[359166643,1745761846390,-5389.10706847,0.00019998,2]
[359166644,1745761846399,-55239.88879035,0.0002,2]
[359166645,1745761848007,-44760.11120965,0.0002,2]
[359166646,1745761848017,-42697.20516619,0.0002,2]
[359166653,1745762253279,518.0,0.000238,120]
[359166658,1745762366272,1315.51,0.00021,10]
[359166661,1745762543247,200.0,0.00025,30]
[359166662,1745762544452,200.0,0.00025,30]
[359166663,1745762545395,200.0,0.00025,30]
[359166664,1745762546013,200.0,0.00025,30]
[359166665,1745762546670,200.0,0.00025,30]
[359166666,1745762547295,200.0,0.00025,30]
[359166667,1745762547888,200.0,0.00025,30]
[359166668,1745762548459,160.0,0.00025,30]
[359166676,1745762870826,936.68848469,0.00025,30]
[359166698,1745763032156,-1000.0,0.00014133,2]
[359166699,1745763032166,-159.9897165,0.00017265,2]
[359166700,1745763032175,-421.1409203,0.00017465,2]
[359166701,1745763032184,-159.9897165,0.00018079,2]
[359166702,1745763032194,-159.9897165,0.00018893,2]
[359166703,1745763032203,-159.9897165,0.00019707,2]
[359166704,1745763032212,-1438.87059751,0.00019715,2]
[359166705,1745763032222,-440.9895084,0.00019799,2]
[359166706,1745763032231,-1006.47850361,0.00019799,2]
[359166707,1745763032241,-5000.0,0.000198,2]
[359166708,1745763032250,-153.0,0.00019807,2]
[359166709,1745763032259,-153.0,0.00019807,2]
[359166710,1745763032268,-153.0,0.00019807,2]
[359166711,1745763032278,-500.0,0.00019863,2]
[359166712,1745763032286,-500.0,0.00019863,2]
[359166713,1745763032295,-250.0,0.00019863,2]
[359166714,1745763032304,-500.0,0.00019863,2]
[359166715,1745763032313,-500.0,0.00019863,2]
[359166716,1745763032323,-500.0,0.00019863,2]
[359166717,1745763032332,-500.0,0.00019863,2]
[359166718,1745763032341,-500.0,0.00019863,2]
[359166719,1745763032350,-500.0,0.00019863,2]
[359166720,1745763032361,-500.0,0.00019863,2]
[359166721,1745763032372,-153.0,0.00019865,2]
[359166722,1745763032381,-153.0,0.00019865,2]
[359166723,1745763032390,-153.0,0.00019865,2]
[359166724,1745763032399,-500.0,0.00019869,2]
[359166725,1745763032409,-500.0,0.00019869,2]
[359166726,1745763032419,-185.57304366,0.00019869,2]
[359166727,1745763032429,-500.0,0.00019869,2]
[359166728,1745763032440,-221.87098764,0.00019869,2]
[359166729,1745763032450,-150.85231897,0.00019869,2]
[359166730,1745763032460,-400.0,0.00019869,2]
[359166731,1745763032471,-367.11,0.00019869,2]
[359166732,1745763032481,-15778.84779411,0.0001987,2]
[359166733,1745763032494,-10264.08558876,0.0001987,2]
[359166734,1745763032505,-414.1104975,0.0001987,2]
[359166774,1745763038336,-234.19720885,0.000198,2]
[359166777,1745763038347,-500.0,0.00019863,2]
[359166778,1745763038356,-500.0,0.00019863,2]
[359166779,1745763038366,-500.0,0.00019863,2]
[359166780,1745763038378,-84.01098697,0.00019863,2]
[359166861,1745763043391,-160.0,0.00017465,2]
[359166862,1745763043402,-415.98901303,0.00019863,2]
[359166863,1745763043412,-500.0,0.00019863,2]
[359166864,1745763043423,-500.0,0.00019863,2]
[359166865,1745763043433,-500.0,0.00019863,2]
[359166866,1745763043443,-579.67906782,0.00019863,2]
[359166868,1745763043454,-500.0,0.00019863,2]
[359166869,1745763043465,-500.0,0.00019863,2]
[359166870,1745763043474,-29645.14611963,0.0001987,2]
[359166871,1745763043484,-4166.66,0.00019899,2]
[359166872,1745763043494,-42762.87291795,0.000199,2]
[359166873,1745763043503,-381.16879293,0.000199,2]
[359166874,1745763043513,-840.47993636,0.00019921,2]
[359166875,1745763043523,-160.0,0.00019924,2]
[359166876,1745763043533,-160.0,0.00019924,2]
[359166877,1745763043543,-499.71659445,0.00019973,2]
[359166878,1745763043553,-500.0,0.00019973,2]
[359166879,1745763043562,-381.6784248,0.00019973,2]
[359166880,1745763043572,-442.21190879,0.00019973,2]
[359166881,1745763043582,-282.94219849,0.00019973,2]
[359166882,1745763043592,-500.0,0.00019973,2]
[359166883,1745763043601,-500.0,0.00019973,2]
[359166884,1745763043611,-500.0,0.00019973,2]
[359166885,1745763043621,-500.0,0.00019973,2]
[359166886,1745763043630,-500.0,0.00019973,2]
[359166887,1745763043640,-500.0,0.00019973,2]
[359166888,1745763043650,-500.0,0.00019973,2]
[359166889,1745763043660,-500.0,0.00019973,2]
[359166890,1745763043670,-300.0,0.00019973,2]
[359166891,1745763043680,-504.68052444,0.00019973,2]
[359166892,1745763043690,-500.0,0.00019973,2]
[359166893,1745763043699,-501.75562334,0.00019973,2]
[359166894,1745763043709,-500.0,0.00019973,2]
[359166895,1745763043719,-207.4,0.00019988,2]
[359166896,1745763043728,-126522.32224352,0.0002,2]
[359166897,1745763043740,-23393.174853,0.0002,2]
[359166898,1745763043750,-153.0,0.0002,2]
[359166899,1745763043927,-306.0,0.0002,2]
[359166900,1745763043937,-306.0,0.0002,2]
[359166901,1745763043946,-153.0,0.0002,2]
[359166902,1745763043956,-201.4580932,0.0002,2]
[359166903,1745763043965,-153.0,0.0002,2]
[359166904,1745763043975,-153.0,0.0002,2]
[359166905,1745763043984,-179.22693525,0.00020143,2]
[359166906,1745763043994,-4166.66,0.00020173,2]
[359166907,1745763044003,-157.1038495,0.00020339,2]
[359166908,1745763044013,-4166.66,0.00020447,2]
[359166909,1745763044022,-234.19720881,0.0002045,2]
[359166910,1745763044031,-381.16879275,0.0002059,2]
[359166911,1745763044041,-306.0,0.00020687,2]
[359166912,1745763044051,-153.0,0.00020687,2]
[359166913,1745763044061,-153.0,0.00020687,2]
[359166914,1745763044070,-153.0,0.00020687,2]
[359166915,1745763044080,-153.0,0.00020687,2]
[359166916,1745763044090,-153.0,0.00020687,2]
[359166917,1745763044099,-153.0,0.00020687,2]
[359166918,1745763044109,-153.0,0.00020687,2]
[359166919,1745763044119,-153.0,0.00020687,2]
[359166920,1745763044128,-153.0,0.00020687,2]
[359166921,1745763044137,-153.0,0.00020687,2]
[359166922,1745763044147,-153.0,0.00020687,2]
[359166923,1745763044156,-154.2803121,0.00020687,2]
[359166924,1745763044166,-153.0,0.00020687,2]
[359166925,1745763044175,-153.0,0.00020687,2]
[359166926,1745763044185,-153.0,0.00020687,2]
[359166927,1745763044195,-153.0,0.000207,2]
[359166928,1745763044204,-4166.66,0.00020721,2]
[359166929,1745763044214,-153.0,0.00020781,2]
[359166930,1745763044223,-151.0,0.000209,3]
[359166931,1745763044233,-461.92712851,0.0002098,2]
[359166932,1745763044243,-500.46274838,0.0002098,2]
[359166933,1745763044253,-500.0,0.0002098,2]
[359166934,1745763044263,-403.81177629,0.0002098,2]
[359166935,1745763044272,-501.20080967,0.0002098,2]
[359166936,1745763044281,-500.3497503,0.0002098,2]
[359166937,1745763044291,-500.0,0.0002098,2]
[359166938,1745763044300,-501.01072024,0.0002098,2]
[359166939,1745763044310,-500.0,0.0002098,2]
[359166940,1745763044330,-500.0,0.0002098,2]
[359166941,1745763044341,-500.0,0.0002098,2]
[359166942,1745763044351,-529.2650761,0.0002098,2]
[359166943,1745763044362,-500.0,0.0002098,2]
[359166944,1745763044372,-500.0,0.0002098,2]
[359166945,1745763044387,-500.70145363,0.0002098,2]
[359166946,1745763044397,-500.0,0.0002098,2]
[359166947,1745763044407,-4166.66,0.00020995,2]
[359166948,1745763044419,-5155.740105,0.00021,2]
[359166949,1745763044429,-271.4,0.00021,2]
[359166950,1745763044439,-234.19720881,0.000211,2]
[359166951,1745763044449,-719.723,0.00021165,2]
[359166952,1745763044460,-420.49,0.00021165,2]
[359166953,1745763044471,-403.0,0.00021165,2]
[359166954,1745763044480,-451.76509309,0.00021269,2]
[359166955,1745763044495,-1438.17260358,0.00021269,2]
[359166956,1745763044508,-2276.72230333,0.00021269,2]
[359166957,1745763044518,-381.16879275,0.00021279,3]
[359166958,1745763044529,-215.0738,0.00021357,2]
[359166959,1745763044539,-500.0,0.0002138,2]
[359166960,1745763044549,-2084.18605279,0.00021543,2]
[359166971,1745763046289,-160.0,0.00019921,2]
[359166972,1745763046301,-122.94219849,0.00019921,2]
[359166973,1745763046353,-37.05780151,0.00019921,2]
[359166974,1745763046364,-462.94219849,0.00019921,2]
[359166981,1745763301482,347.0,0.00021,10]
[359166982,1745763302052,430.0,0.00021,10]
[359166983,1745763302629,398.0,0.00021,10]
[359166984,1745763303184,236.0,0.00021,10]
[359166985,1745763303787,466.0,0.00021,10]
[359166986,1745763304354,177.0,0.00021,10]
[359166987,1745763304970,268.0,0.00021,10]
[359166988,1745763306133,239.0,0.00021,10]
[359166994,1745763727196,1677.0,0.00021,30]
[359166995,1745763774898,-518.37,0.000251,120]
[359166996,1745763774929,-518.37,0.000253,120]
[359166997,1745763774961,-518.37,0.000256,120]
[359166998,1745763774993,-518.37,0.000258,120]
[359166999,1745763775024,-518.37,0.00026,120]
[359167000,1745763775055,-518.37,0.000262,120]
[359167001,1745763775087,-518.37,0.000265,120]
[359167002,1745763775118,-518.37,0.000267,120]
[359167003,1745763775161,-518.37,0.000269,120]
[359167004,1745763775198,-6250.0,0.00027397,120]
[359167005,1745763775231,-518.37,0.000274,120]
[359167006,1745763775263,-518.37,0.000276,120]
[359167007,1745763775296,-518.37,0.000279,120]
[359167008,1745763775327,-518.37,0.000281,120]
[359167009,1745763775359,-518.37,0.000283,120]
[359167010,1745763775392,-518.37,0.000286,120]
[359167011,1745763775424,-518.37,0.000288,120]
[359167012,1745763775456,-518.37,0.00029,120]
[359167013,1745763775487,-518.47,0.000293,120]
[359167014,1745763775521,-313.23359267,0.0003,120]
[359167015,1745763780672,-400.0,0.00027397,60]
[359167016,1745763780704,-159.8929937,0.00027859,30]
[359167017,1745763780738,-499440.1070063,0.0003,60]
[359167075,1745764232432,-880.66869065,0.00019759,2]
[359167076,1745764232945,-160.0,0.00019777,2]
[359167077,1745764232955,-840.47993636,0.00019777,2]
[359167078,1745764232965,-160.0,0.00019777,2]
[359167079,1745764232975,-160.0,0.0001978,2]
[359167080,1745764232984,-160.0,0.00019816,2]
[359167081,1745764232993,-185.26076774,0.00019816,2]
[359167082,1745764233003,-1000.0,0.0001982,2]
[359167083,1745764233013,-185.26076773,0.0001983,2]
[359167084,1745764233023,-185.26076773,0.00019845,2]
[359167085,1745764233032,-500.0,0.00019856,2]
[359167086,1745764233042,-500.0,0.00019856,2]
[359167087,1745764233051,-196.45823238,0.00019856,2]
[359167088,1745764233061,-579.87746804,0.00019856,2]
[359167089,1745764233071,-500.0,0.00019856,2]
[359167090,1745764233080,-500.0,0.00019856,2]
[359167091,1745764233090,-500.0,0.00019856,2]
[359167092,1745764233100,-500.0,0.00019856,2]
[359167093,1745764233110,-500.0,0.00019856,2]
[359167094,1745764233120,-17879.80224988,0.00019857,2]
[359167095,1745764233129,-300.0,0.00019857,2]
[359167096,1745764233138,-1200.0,0.00019857,2]
[359167097,1745764233148,-185.26076773,0.00019859,2]
[359167098,1745764233158,-3038.16,0.00019868,2]
[359167099,1745764233168,-810.20184059,0.00019869,2]
[359167110,1745764238330,-348.28,0.00019679,2]
[359167122,1745764240756,-118.44823038,0.00019679,2]
[359167123,1745764240766,-284.92463622,0.00019856,2]
[359167126,1745764240932,-215.07536378,0.00019856,2]
[359167127,1745764240942,-500.0,0.00019856,2]
[359167128,1745764240952,-500.0,0.00019856,2]
[359167129,1745764240962,-336.20220137,0.00019856,2]
[359167130,1745764240971,-500.0,0.00019856,2]
[359167131,1745764240980,-500.0,0.00019856,2]
[359167132,1745764240991,-500.0,0.00019856,2]
[359167133,1745764241001,-500.0,0.00019856,2]
[359167134,1745764241012,-500.0,0.00019856,2]
[359167135,1745764241022,-353.22659669,0.00019856,2]
[359167193,1745764243548,-146.77340331,0.00019856,2]
[359167195,1745764243558,-12584.55399671,0.00019866,2]
[359167197,1745764243567,-421.1409203,0.0001987,2]
[359167199,1745764243577,-185.26076773,0.00019873,2]
[359167201,1745764243587,-151.0,0.000199,2]
[359167203,1745764243596,-151.0,0.000199,2]
[359167205,1745764243606,-151.0,0.000199,2]
[359167208,1745764243615,-151.0,0.000199,2]
[359167210,1745764243624,-151.0,0.000199,2]
[359167212,1745764243633,-151.0,0.000199,2]
[359167214,1745764243642,-151.0,0.000199,2]
[359167216,1745764243652,-700.06333403,0.000199,2]
[359167217,1745764243661,-207.4,0.00019902,2]
[359167219,1745764243670,-185.12669749,0.00019906,2]
[359167221,1745764243679,-215.851,0.00019906,2]
[359167222,1745764243689,-608.67300158,0.00019913,2]
[359167223,1745764243698,-500.0,0.00019913,2]
[359167225,1745764243708,-580.83530028,0.00019913,2]
[359167227,1745764243717,-17440.47308034,0.00019914,2]
[359167266,1745764246385,-37319.15020128,0.00019914,2]
[359167268,1745764246395,-840.47993636,0.00019916,3]
[359167270,1745764246405,-12584.55399671,0.00019916,3]
[359167272,1745764246414,-5275.09569125,0.00019916,2]
[359167274,1745764246422,-23048.21518397,0.00019916,3]
[359167276,1745764246432,-160.0,0.00019916,3]
[359167278,1745764246441,-41827.38853395,0.00019916,2]
[359167280,1745764246452,-4939.0846938,0.00019916,2]
[359167286,1745764246523,-26303.02168393,0.00019916,2]
[359167289,1745764246534,-240850.13349457,0.00019916,2]
[359167405,1745764781614,235.961928,0.00018856,120]
[359167408,1745765204030,161.80083252,0.0002,14]
[359167450,1745765432637,-875.59951276,0.00018596,2]
[359167451,1745765432647,-302.4747634,0.000186,2]
[359167452,1745765432656,-500.0,0.00018673,2]
[359167453,1745765432665,-500.0,0.00018673,2]
[359167454,1745765432675,-160.0,0.00018689,2]
[359167455,1745765432685,-300.0,0.00018694,2]
[359167456,1745765432694,-682.0,0.00018694,2]
[359167457,1745765432703,-20590.96748158,0.00018695,2]
[359167458,1745765432712,-169.40893824,0.00018695,2]
[359167459,1745765432721,-348.30797478,0.00018695,2]
[359167460,1745765432731,-500.0,0.00018695,2]
[359167461,1745765432740,-500.0,0.00018695,2]
[359167462,1745765432753,-500.0,0.00018695,2]
[359167463,1745765432762,-370.03733614,0.00018695,2]
[359167464,1745765432771,-500.0,0.00018695,2]
[359167465,1745765432781,-500.0,0.00018695,2]
[359167466,1745765432792,-500.0,0.00018695,2]
[359167467,1745765432801,-500.0,0.00018695,2]
[359167468,1745765432811,-500.0,0.00018695,2]
[359167469,1745765432821,-500.0,0.00018695,2]
[359167470,1745765432831,-500.0,0.00018695,2]
[359167471,1745765432840,-500.0,0.00018695,2]
[359167472,1745765432850,-500.0,0.00018695,2]
[359167473,1745765432859,-501.15550901,0.00018695,2]
[359167474,1745765432869,-506.9294292,0.00018695,2]
[359167475,1745765432878,-500.0,0.00018695,2]
[359167476,1745765432887,-500.0,0.00018695,2]
[359167477,1745765432896,-416.27619749,0.00018695,2]
[359167478,1745765432905,-500.0,0.00018696,2]
[359167479,1745765432914,-500.0,0.00018696,2]
[359167480,1745765432923,-500.00000001,0.00018696,2]
[359167481,1745765432934,-500.0,0.00018696,2]
[359167482,1745765432945,-500.0,0.00018696,2]
[359167483,1745765432955,-500.0,0.00018696,2]
[359167484,1745765432965,-500.0,0.00018696,2]
[359167485,1745765432975,-500.0,0.00018696,2]
[359167486,1745765432988,-500.0,0.00018696,2]
[359167487,1745765432998,-500.0,0.00018696,2]
[359167488,1745765433007,-500.0,0.00018696,2]
[359167489,1745765433017,-500.0,0.00018696,2]
[359167490,1745765433027,-500.0,0.00018696,2]
[359167491,1745765433036,-500.0,0.00018696,2]
[359167492,1745765433046,-500.0,0.00018696,2]
[359167493,1745765433055,-442.9605354,0.00018696,2]
[359167494,1745765433064,-500.0,0.00018696,2]
[359167495,1745765433073,-295.54151434,0.00018696,2]
[359167496,1745765433083,-500.0,0.00018696,2]
[359167497,1745765433092,-371.45494195,0.00018696,2]
[359167498,1745765433102,-500.0,0.00018696,2]
[359167499,1745765433111,-500.0,0.00018696,2]
[359167500,1745765433121,-500.0,0.00018696,2]
[359167501,1745765433130,-500.0,0.00018696,2]
[359167502,1745765433140,-500.0,0.00018696,2]
[359167503,1745765433149,-500.0,0.00018696,2]
[359167504,1745765433159,-500.0,0.00018696,2]
[359167505,1745765433169,-500.0,0.00018696,2]
[359167506,1745765433179,-500.0,0.00018696,2]
[359167507,1745765433188,-500.0,0.00018696,2]
[359167508,1745765433198,-500.0,0.00018696,2]
[359167509,1745765433208,-500.0,0.00018696,2]
[359167510,1745765433218,-500.0,0.00018696,2]
[359167511,1745765433228,-500.0,0.00018696,2]
[359167512,1745765433238,-393.75711286,0.00018696,2]
[359167513,1745765433247,-500.0,0.00018696,2]
[359167514,1745765433258,-500.0,0.00018696,2]
[359167515,1745765433267,-500.0,0.00018696,2]
[359167516,1745765433277,-500.0,0.00018696,2]
[359167517,1745765433286,-500.0,0.00018696,2]
[359167518,1745765433296,-500.0,0.00018696,2]
[359167519,1745765433306,-500.0,0.00018696,2]